Cogmind - Beta 12 @@@ ROGUE MODE // 2023.06.27 @ 23:29:28 Player: ZOT Result: Self-destructed Performance ------------- Evolutions (2) 1000 Regions Visited (4) 800 Robots Destroyed (18) 90 Value Destroyed (492) 492 Prototype IDs (1) 20 Alien Tech Used (0) 0 Bonus (0) 0 TOTAL SCORE: 2402 Bonus ------- None Cogmind --------- Core Integrity 489/550 Matter 300/300 Energy 55/100 System Corruption 0% Temperature Cool (0) Movement Flying (29) Location -8/Materials Parts ------- > --- POWER (1) -------- (None) > --- PROPULSION (4) --- Improved VTOL Module Improved VTOL Module Improved VTOL Module > --- UTILITY (4) ------ Advanced Weight Redist. System Terrain Scan Processor Terrain Scan Processor > --- WEAPON (2) ------- (None) > --- INVENTORY (5) ---- Ion Engine Wheel Signal Interpreter Advanced Targeting Computer Peak State ------------ > --- POWER ------------ Deuterium Engine > --- PROPULSION ------- Flight Unit Improved VTOL Module Improved VTOL Module Improved VTOL Module > --- UTILITY ---------- Advanced Weight Redist. System Terrain Scan Processor Terrain Scan Processor System Shield > --- WEAPON ----------- Heavy EM Pulse Gun Particle Gun > --- INVENTORY -------- Ion Engine Wheel Signal Interpreter Advanced Targeting Computer [Rating: 30] Favorites ----------- Power Ion Engine Engine Ion Engine Propulsion Wheel Wheel Wheel Flight Unit Improved VTOL Module Utility Terrain Scan Processor Device Improved Terrain Scanner Processor Terrain Scan Processor Hackware System Shield Weapon Assault Rifle Energy Gun Medium Laser Ballistic Gun Assault Rifle Build | -11 -10 -9 -9 -8 ------- Run | Jun Mat Mat Min Mat Slots Evolved 4 | . . 2 . 2 Power . | . . . . . Propulsion 2 | . . 1 . 1 Utility 2 | . . 1 . 1 Weapon . | . . . . . Parts Attached 30 | 8 . 5 6 11 Power 3 | 1 . . 1 1 Engine 3 | 1 . . 1 1 Core . | . . . . . Reactor . | . . . . . Propulsion 15 | 3 . 3 4 5 Treads . | . . . . . Leg . | . . . . . Wheel 6 | 3 . 3 . . Hover . | . . . . . Flight 9 | . . . 4 5 Utility 6 | 2 . 1 1 2 Device 3 | 2 . . . 1 Storage . | . . . . . Processor 2 | . . 1 1 . Hackware 1 | . . . . 1 Protection . | . . . . . Artifact . | . . . . . Weapon 6 | 2 . 1 . 3 Energy Gun 4 | 1 . . . 3 Energy Cannon . | . . . . . Ballistic Gun 2 | 1 . 1 . . Ballistic Cannon . | . . . . . Launcher . | . . . . . Special Weapon . | . . . . . Impact Weapon . | . . . . . Slashing Weapon . | . . . . . Piercing Weapon . | . . . . . Special Melee Weapon . | . . . . . Unidentified Prototypes 1 | . . . . 1 Parts Lost 15 | . . 5 1 9 Power 1 | . . . . 1 Propulsion 5 | . . 2 1 2 Utility 3 | . . 1 . 2 Weapon 6 | . . 2 . 4 Highest Loss Streak 3 | . . 2 3 3 To Critical Strikes . | . . . . . Average Slot Usage (%) 85 | . 100 95 81 75 Engine 10 | . 14 11 11 8 Wheel 14 | . 28 30 17 . Flight 14 | . . . 8 28 Device 15 | . 28 20 11 8 Processor 13 | . . 11 22 18 Energy Gun 8 | . 14 11 . 6 Ballistic Gun 7 | . 14 10 11 3 Naked Turns . | . . . . . Heaviest Build 15 | 11 11 11 8 15 Greatest Support 30 | 26 20 30 20 28 Greatest Overweight (x) 1 | 1 . . . . Average Overweight (x) . | . . . . . Largest Inventory Capacity 5 | 5 5 5 5 5 Average Capacity 5 | 5 5 5 5 5 Most Carried 5 | 5 5 4 5 5 Average Carried 3 | 1 4 2 2 4 Final Capacity 5 | 5 5 5 5 5 Final Carried 5 | 4 5 2 3 4 Class Distribution -------------------- 34% | Sprinter 34% | Mutant 30% | Scavenger-Mutant Dominant Class ---------------- Mutant | -10/Materials Scavenger-Mutant | -9/Materials Mutant | -9/Mines Sprinter | -8/Materials Resources | -11 -10 -9 -9 -8 ----------- Run | Jun Mat Mat Min Mat Matter Collected 593 | 292 9 88 45 159 Remotely . | . . . . . Salvage Created 619 | 79 19 213 45 263 Parts 52 | 10 1 16 4 21 Haulers Intercepted . | . . . . . Recyclers Shooed . | . . . . . Parts Field Recycled . | . . . . . Retrieved Matter . | . . . . . Parts Self-Destructed . | . . . . . Prevented . | . . . . . Kills | -11 -10 -9 -9 -8 ------- Run | Jun Mat Mat Min Mat Combat Hostiles Destroyed 13 | . . 5 3 5 Guns 12 | . . 5 3 4 AOE 1 | . . . . 1 Classes Destroyed 5 | 1 1 1 1 1 Tunneler 3 | 3 . . . . Watcher 2 | . 1 1 . . Swarmer 3 | . . . 3 . Grunt 7 | . . 5 . 2 Sentry 3 | . . . . 3 Best Kill Streak 5 | 3 1 4 5 3 Combat Bots Only 4 | . . 4 3 3 Max Kills in Single Turn 1 | 1 1 1 1 1 Gunslinging . | . . . . . Exploded 1 | . . . . 1 Melee . | . . . . . Uniques/NPCs Destroyed . | . . . . . Combat | -11 -10 -9 -9 -8 -------- Run | Jun Mat Mat Min Mat Damage Taken 1121 | . . 512 101 508 Core 198 | . . 103 34 61 Absorbed by Shields . | . . . . . Regen/Repaired (Parts) 15 | . . . . 15 Core Remaining (%) 88 | 100 100 . 65 . Volleys Fired 67 | 4 3 18 10 32 Largest 2 | 2 2 2 1 2 Hottest 110 | 70 70 70 20 110 Shots Fired 100 | 8 6 35 10 41 Gun 100 | 8 6 35 10 41 Cannon . | . . . . . Launcher . | . . . . . Special . | . . . . . Kinetic 47 | 4 3 17 10 13 Thermal 37 | 4 3 18 . 12 Explosive . | . . . . . Electromagnetic 16 | . . . . 16 Robot Hit Streak 12 | 2 3 8 2 12 Robot Miss Streak 4 | 3 2 1 3 4 Penetration Max . | . . . . . Secondary Targets 4 | . . 4 . . Max Gunslinging Chain 1 | . . 1 . . Shots Hit Robots 70 | 3 3 25 5 34 Core Hits 37 | 3 1 11 3 19 Critical Kills . | . . . . . Critical Parts Destroyed . | . . . . . Critical Strikes 2 | . . 2 . . Burn 2 | . . 2 . . Melee Attacks . | . . . . . Impact . | . . . . . Slashing . | . . . . . Piercing . | . . . . . Sneak Attacks . | . . . . . Combat Hostiles . | . . . . . Follow-up Attacks . | . . . . . Damage Inflicted 1026 | 34 36 325 105 526 Guns 982 | 34 36 325 105 482 Cannons . | . . . . . Explosions 44 | . . . . 44 Melee . | . . . . . Ramming . | . . . . . Kinetic 410 | 22 11 163 105 109 Thermal 411 | 12 25 162 . 212 Explosive . | . . . . . Electromagnetic 205 | . . . . 205 Impact . | . . . . . Slashing . | . . . . . Piercing . | . . . . . Highest Corruption . | . . . . . Average Corruption . | . . . . . Corruption Purged . | . . . . . Corruption Blocked . | . . . . . Overload Shots . | . . . . . Overflow Damage . | . . . . . Projectiles . | . . . . . Explosions . | . . . . . Melee . | . . . . . Knockbacks . | . . . . . Impact . | . . . . . Kinetic . | . . . . . Secondary . | . . . . . Self-Inflicted Damage 33 | . . . . 33 Shots 1 | . . . . 1 Rammed . | . . . . . Targets Rammed . | . . . . . Kicked . | . . . . . Crushed . | . . . . . Highest Temperature 214 | 18 27 185 . 214 Average Temperature 75 | 8 14 103 . 74 Received Heat Transfer 312 | . . 213 . 99 Siege Activations . | . . . . . Robots Corrupted . | . . . . . Combat Hostiles . | . . . . . Parts Fried . | . . . . . Impact Corruptions . | . . . . . Robots Melted . | . . . . . Combat Hostiles . | . . . . . Parts Melted . | . . . . . Heat Transferred 1197 | 37 74 629 . 457 Parts Sabotaged . | . . . . . Parts Stolen . | . . . . . Parts Stripped . | . . . . . Power Chain Reactions 1 | . . . . 1 Missiles Intercepted . | . . . . . Alert | -11 -10 -9 -9 -8 ------- Run | Jun Mat Mat Min Mat Peak Influence 260 | 15 31 137 108 260 Initial 48 | . 9 13 48 41 Average 98 | 4 19 83 97 155 Maximum Alert Level 1 | . . . . 1 Low Security (%) 86 | 100 100 100 100 68 Level 1 13 | . . . . 31 Level 2 . | . . . . . Level 3 . | . . . . . Level 4 . | . . . . . Level 5 . | . . . . . High Security . | . . . . . Max Security . | . . . . . Squads Dispatched 3 | . . 2 . 1 Investigation 1 | . . 1 . . Extermination . | . . . . . Reinforcement 2 | . . 1 . 1 Assault . | . . . . . Garrison . | . . . . . Intercept . | . . . . . Searches Triggered . | . . . . . Construction Impeded . | . . . . . Haulers Reinforced . | . . . . . Active Scanning Responses . | . . . . . Cargo Convoy Interrupts . | . . . . . Stealth | -11 -10 -9 -9 -8 --------- Run | Jun Mat Mat Min Mat Distress Signals 3 | . . 1 . 2 Communications Jammed . | . . . . . Distress Signals . | . . . . . Times Spotted 35 | . 1 15 3 16 Peak Tracking Total 9 | . 1 9 3 7 Tactical Retreats 2 | . . . . 2 Traps | -11 -10 -9 -9 -8 ------- Run | Jun Mat Mat Min Mat Traps Triggered . | . . . . . Indirectly . | . . . . . Trap Hack Attempts . | . . . . . Triggered . | . . . . . Disarmed . | . . . . . Reprogrammed . | . . . . . Reused . | . . . . . Traps Extracted . | . . . . . Installed . | . . . . . Triggered . | . . . . . Machines | -11 -10 -9 -9 -8 ---------- Run | Jun Mat Mat Min Mat Machines Disabled 1 | . . . . 1 Max in Single Turn 1 | . . . . 1 Machines Repaired . | . . . . . Machines Sabotaged . | . . . . . Overloaded Fab Kills . | . . . . . Hacking | -11 -10 -9 -9 -8 --------- Run | Jun Mat Mat Min Mat Machines Accessed 11 | . 2 2 . 7 Terminals 9 | . 2 2 . 5 Fabricators . | . . . . . Repair Stations 1 | . . . . 1 Recycling Units 1 | . . . . 1 Scanalyzers . | . . . . . Garrison Access . | . . . . . Total Hacks 43 | . 6 11 . 26 Successful 25 | . 3 7 . 15 Failed 18 | . 3 4 . 11 Catastrophic . | . . . . . Database Lockouts . | . . . . . Manual . | . . . . . Terminals 40 | . 6 11 . 23 Fabricators . | . . . . . Repair Stations 2 | . . . . 2 Recycling Units 1 | . . . . 1 Scanalyzers . | . . . . . Garrison Access . | . . . . . Terminal Hacks 22 | . 3 7 . 12 Record 11 | . 3 2 . 6 Robot Analysis 1 | . . 1 . . Branch Access Points 2 | . . 1 . 1 Emergency Access Points 1 | . . . . 1 Scanalyzer Index 1 | . . . . 1 Alert Level 1 | . . . . 1 Locate Traps 1 | . . 1 . . Dispatch Records 1 | . . . . 1 Surveillance Status 1 | . . 1 . . Investigation Status 1 | . . . . 1 Zone Layout 1 | . . 1 . . Fabricator Hacks . | . . . . . Repair Station Hacks 2 | . . . . 2 Scan Component 1 | . . . . 1 Repair 1 | . . . . 1 Recycling Unit Hacks 1 | . . . . 1 Report Inventory 1 | . . . . 1 Scanalyzer . | . . . . . Garrison Access Hacks . | . . . . . Unauthorized Hacks . | . . . . . Terminals . | . . . . . Fabricators . | . . . . . Repair Stations . | . . . . . Recycling Units . | . . . . . Scanalyzers . | . . . . . Garrison Access . | . . . . . Data Cores Recovered . | . . . . . Used . | . . . . . Hacking Detections 8 | . 2 1 . 5 Full Trace Events 1 | . . 1 . . Feedback Events . | . . . . . Feedback Blocked . | . . . . . Robot Schematics Acquired . | . . . . . Robots Built . | . . . . . Authchips . | . . . . . Time . | . . . . . Total Robot Build Rating . | . . . . . Part Schematics Acquired . | . . . . . Parts Built . | . . . . . Authchips . | . . . . . Time . | . . . . . Total Part Build Rating . | . . . . . Parts Repaired 1 | . . . . 1 Time 26 | . . . . 26 Parts Recycled . | . . . . . Recycled Matter . | . . . . . Retrieved Matter . | . . . . . Retrieved Components . | . . . . . Parts Scanalyzed . | . . . . . Part Schematics Acquired . | . . . . . Parts Damaged . | . . . . . Bothacking | -11 -10 -9 -9 -8 ------------ Run | Jun Mat Mat Min Mat Used RIF Installer . | . . . . . Robots Hacked . | . . . . . Non-combat . | . . . . . Combat . | . . . . . Robot Hacks Applied . | . . . . . Relay Couplers Released . | . . . . . Fabnet Peak Effective % . | . . . . . Robots Rewired . | . . . . . Allies Hacked . | . . . . . Hacks Repelled . | . . . . . Allies | -11 -10 -9 -9 -8 -------- Run | Jun Mat Mat Min Mat Total Allies . | . . . . . Largest Group . | . . . . . Highest-Rated Group . | . . . . . Highest-Rated Ally . | . . . . . Total Orders . | . . . . . Ally Attacks . | . . . . . Total Damage . | . . . . . Kills . | . . . . . Allies Corrupted . | . . . . . Allies Melted . | . . . . . Intel | -11 -10 -9 -9 -8 ------- Run | Jun Mat Mat Min Mat Robot Analysis Total 1 | . . 1 . . Derelict Logs Recovered . | . . . . . Drone Launches . | . . . . . Drone Recoveries . | . . . . . Exploration | -11 -10 -9 -9 -8 ------------- Run | Jun Mat Mat Min Mat Turns Passed 729 | 87 85 191 49 317 Spaces Moved 821 | 65 92 133 31 500 Core 4 | 4 . . . . Treads . | . . . . . Legs . | . . . . . Wheels 298 | 61 92 133 12 . Hover . | . . . . . Flight 519 | . . . 19 500 Fastest Speed 27 | 50 80 80 37 27 Average Speed 49 | 85 80 80 53 30 Slowest Speed 100 | 100 80 80 80 37 Overloaded Moves . | . . . . . Propulsion Burnouts . | . . . . . Robots Hopped . | . . . . . Cave-ins Triggered . | . . . . . Exploration Rate (%) 17 | 3 20 17 11 34 Regions Visited 4 Branch Regions 1 Pre-discovered Areas . | . . . . . Known Exits Taken 1 | . . 1 . . Unknown Exits Taken 3 | 1 1 . 1 . Scrap Searched . | . . . . . Spaces Dug . | . . . . . Terrain Destroyed 3 | . . . . 3 Melee . | . . . . . Projectile . | . . . . . AOE 3 | . . . . 3 Terrain Rammed . | . . . . . Walls Destroyed . | . . . . . Machines Disabled . | . . . . . Actions | -11 -10 -9 -9 -8 --------- Run | Jun Mat Mat Min Mat Total 1040 | 87 97 182 52 622 Wait 96 | . . 25 . 71 Move 817 | 64 91 132 30 500 Hop . | . . . . . Pick Up 25 | 11 2 2 4 6 Fast Attach 5 | . . . . 5 Attach 20 | 7 . 5 4 4 Detach 1 | . . . 1 . Swap 5 | 1 . . 2 2 Drop 4 | . 1 . 1 2 Fire 67 | 4 3 18 10 32 Melee . | . . . . . Ram . | . . . . . Kick . | . . . . . Crush . | . . . . . Escape Stasis . | . . . . . Rewire . | . . . . . Trap . | . . . . . Miscellaneous . | . . . . . Route ------- -11/Junkyard -10/Materials -9/Materials (discovered 2 exits: *Min x2) -9/Mines -8/Materials History --------- Turn | Location | Event 2 | -11/Junkyard | Met Revision 17 18 | -11/Junkyard | Discovered new exit (range 15) 88 | -11/Junkyard | Entered Materials 160 | -10/Materials | Discovered new exit (range 16) 173 | -10/Materials | Entered another Materials area 173 | -9/Materials | Evolved 2 slots: Propulsion x1, Utility x1 181 | -9/Materials | Identified exit to Mines 364 | -9/Materials | Entered Mines 396 | -9/Mines | Lost 3 parts (1n1u1w) 409 | -9/Mines | Discovered new exit (range 11) 413 | -9/Mines | Entered Materials 413 | -8/Materials | Evolved 2 slots: Propulsion x1, Utility x1 478 | -8/Materials | Repaired Flight Unit 558 | -8/Materials | Lost 3 parts (1n1u1w) 699 | -8/Materials | Lost 3 parts (1n2w) 730 | -8/Materials | Self-destructed Last Messages --------------- 00644_ Slug penetrates Wall. 00662_ Penetrated by Slug. 00665_ Hvy. EM Pulse Gun destroyed. 00668_ Particle Gun destroyed. 00668_ Flight Unit destroyed. 00671_ H-55 Commando IFF system glitched. 00671_ Slug penetrates K-01 Serf. 00671_ K-01 Serf destroyed. 00672_ R-06 Scavenger collects Lgt. Ion Engine. 00672_ W-25 Informer sends out distress signal. 00685_ Acquired EM Shotgun. 00690_ Slug penetrates Wall. 00707_ G-47 Trooper shuts down. 00711_ G-47 Trooper destroyed. 00719_ G-47 Trooper reactivates. 00723_ Slug penetrates Wall. 00723_ Deuterium Engine destroyed. 00723_ Terminal disabled. 00726_ Slug penetrates Wall. 00726_ EM Shotgun destroyed. Map ----- +----------------------------------------------------+ | | | | | | | | | | | | | | | | | | | | | ????????????##################################???? | | ????????????# # # """ [#???? | | ????????????# " " != + """ ]# """ ##### | | ?????#?????## "G" == # """ # """ + | | ???????????## " # "T" """ # ### | | #####?????## # """ # #?# | | #??????###########+#######+#####+## * #?# | | ############?### ###### ### ##+####### | | + | | ###### % | | #???????#?###### ##### #### ##"######### | | ############??###??###### #??###### #???? | | # # ##?######%= # #?#?????# ##??? | | # # #?### /h= # #?#?????# " ["#??? | | # "" # ##### #Y"" # #?##????# "" !%"#??? | | # "T + # @" # #??##???# "" ="#??? | | # "" # #b"" # #???###?# # #?? | | # # # g # ##??????##########?? | | ######## ###### #??#?#?????????????? | | #####??# ###### #?#??#???#?????????? | | ! ##?# """ #?????????#????????? | | #??# """ #??#?#?????????????? | | "T" ##?# """ ##???#?????????????? | | """ #?## ##########??#??#??????????? | | #?## # #????????????????? | | #####??# """ # """" ##??#??????#?????? | | ######## """ + """" #???#????#???????? | | """ # """" #??##?????#??????? | | # ##???????????????? | | ######## # ""#?#?#????????????? | | ### ###+####### % Y"##???#???##??????? | | ######### #?## ""#??#?????????????? | | """ #?#?###?# #### #??????????#?????? | | """ ##????### """##?###########????????#??????? | | """ #####?### """#????????#???????????????????? | | #???###?# """#?????#?????????????? ???????? | | #?#?#??## ! #?#?#???##????????? ?????????? | | ! #?##?#?#########???#?#??#???#??? #??????????? | | ######?#### ??? ????#??????#???#???? ????????????? | | ??#?#???##? ??????#?#???#????##????????????????? | +----------------------------------------------------+ Best States ------------- Heat Dissipation 31 Energy Generation 14 Energy Capacity 275 Matter Stores 300 Matter Capacity 300 Sight Range 16 Terrain Scan Range 16 Terrain Scan Density 160 Additional Mass Support 9 Evasion (%) 64 Defensive Hacking 10 Item Schematics ----------------- None Robot Schematics ------------------ None Fabricated ------------ Nothing Alien Tech Used ----------------- None Achievements -------------- Omniscient Cartographer Challenges ------------ None Game ------ Seed EnhancedHypercooledStorage Manual? 0 Play Time 00:34:37 Cumulative 31.6 hours Start 2023.06.27 @ 22:42:50 End 2023.06.27 @ 23:29:28 Sessions 1 Manual Loads 0 Difficulty Rogue Special Mode None Game No. 36 Rogue 36 Adventurer 0 Explorer 0 Win Type - Total 0 Types 0/0/0/0/0/0/0/0/0 Lore% 8 Gallery% 27 Achievement% 20 Wizard Run 0 Options --------- ASCII 0 Keyboard 0 Movement Mouse Keybinds 0 Fullscreen 1 Font 24/Smallcaps Map View 76x50 Tactical HUD 1 Map Filters NONE Filters NONE Steam 1 RUN: c7845098-87b4-4a20-89be-6d83af6337f1